[Event "Betsys MČR v online bleskovém šachu 2021"]
[Site "Chess.com"]
[Date "2021.04.17"]
[Round "3"]
[White "Vitana"]
[Black "l_pavlasek"]
[Result "0-1"]
[WhiteElo "1923"]
[BlackElo "1679"]
[TimeControl "180+1"]
[EndTime "9:26:14 PDT"]
[Termination "Uživatel l_pavlasek zvítězil matem"]

1. e4 {[%clk 0:03:00.9]} 1... c5 {[%clk 0:02:59.3]} 2. c3 {[%clk 0:03:00.7]}
2... Nc6 {[%clk 0:02:59.2]} 3. d4 {[%clk 0:03:00.3]} 3... cxd4 {[%clk
0:02:59.3]} 4. cxd4 {[%clk 0:03:00]} 4... d6 {[%clk 0:02:57.9]} 5. f3 {[%clk
0:02:58.9]} 5... g6 {[%clk 0:02:57.7]} 6. Be3 {[%clk 0:02:59.1]} 6... Bg7 {[%clk
0:02:56.5]} 7. Bb5 {[%clk 0:02:58.2]} 7... Bd7 {[%clk 0:02:55.5]} 8. Ne2 {[%clk
0:02:52.8]} 8... a6 {[%clk 0:02:55.3]} 9. Ba4 {[%clk 0:02:52.2]} 9... e6 {[%clk
0:02:46.5]} 10. O-O {[%clk 0:02:51.4]} 10... Nge7 {[%clk 0:02:46.2]} 11. Nbc3
{[%clk 0:02:47.8]} 11... O-O {[%clk 0:02:45.4]} 12. Rc1 {[%clk 0:02:47]} 12...
b5 {[%clk 0:02:39.9]} 13. Bb3 {[%clk 0:02:45]} 13... Na5 {[%clk 0:02:39.1]} 14.
Bc2 {[%clk 0:02:41.1]} 14... Nc4 {[%clk 0:02:38.7]} 15. Bf2 {[%clk 0:02:33.1]}
15... Nxb2 {[%clk 0:02:37.4]} 16. Qe1 {[%clk 0:02:31.4]} 16... Nc4 {[%clk
0:02:36.6]} 17. Bb3 {[%clk 0:02:28.8]} 17... Bh6 {[%clk 0:02:25.5]} 18. Rc2
{[%clk 0:02:17.8]} 18... Nd2 {[%clk 0:02:15.1]} 19. Qd1 {[%clk 0:02:11.7]} 19...
Nxf1 {[%clk 0:02:12.6]} 20. Kxf1 {[%clk 0:02:11.7]} 20... Bg7 {[%clk 0:02:09.7]}
21. Bg3 {[%clk 0:02:10.3]} 21... d5 {[%clk 0:02:06]} 22. exd5 {[%clk 0:02:03.9]}
22... exd5 {[%clk 0:02:05.4]} 23. Bxd5 {[%clk 0:01:57.1]} 23... Nxd5 {[%clk
0:02:03.5]} 24. Nxd5 {[%clk 0:01:56.6]} 24... Bf5 {[%clk 0:02:02.9]} 25. Rc5
{[%clk 0:01:36.8]} 25... Be6 {[%clk 0:01:41.1]} 26. Bc7 {[%clk 0:01:34.4]} 26...
Qd7 {[%clk 0:01:37.3]} 27. Nb6 {[%clk 0:01:33.1]} 27... Qe7 {[%clk 0:01:32]} 28.
Nxa8 {[%clk 0:01:31.5]} 28... Rxa8 {[%clk 0:01:31.9]} 29. Nf4 {[%clk 0:01:26.4]}
29... Bc4+ {[%clk 0:01:31.3]} 30. Kf2 {[%clk 0:01:19.5]} 30... Re8 {[%clk
0:01:25.6]} 31. g3 {[%clk 0:01:12.2]} 31... Qe3+ {[%clk 0:01:22]} 32. Kg2 {[%clk
0:01:09.5]} 32... Bxd4 {[%clk 0:01:19.7]} 33. Rc6 {[%clk 0:01:02]} 33... Qf2+
{[%clk 0:01:00.3]} 34. Kh3 {[%clk 0:00:58]} 34... Bg7 {[%clk 0:00:56]} 35. Rd6
{[%clk 0:00:47.2]} 35... Bf1+ {[%clk 0:00:52.4]} 36. Kh4 {[%clk 0:00:38.8]}
36... Qxh2+ {[%clk 0:00:46.5]} 37. Kg5 {[%clk 0:00:38.6]} 37... Qxg3# {[%clk
0:00:41.7]} 0-1

[Event "Betsys MČR v online bleskovém šachu 2021"]
[Site "Chess.com"]
[Date "2021.04.17"]
[Round "3"]
[White "Clockwork7orange"]
[Black "machonza"]
[Result "1/2-1/2"]
[WhiteElo "2308"]
[BlackElo "1982"]
[TimeControl "180+1"]
[EndTime "9:26:19 PDT"]
[Termination "Remíza opakováním pozice"]

1. d4 {[%clk 0:03:00.9]} 1... Nf6 {[%clk 0:02:59]} 2. c4 {[%clk 0:03:01.1]} 2...
e6 {[%clk 0:02:58.5]} 3. Nc3 {[%clk 0:03:01.3]} 3... Bb4 {[%clk 0:02:57.6]} 4.
f3 {[%clk 0:03:01.9]} 4... c5 {[%clk 0:02:55.5]} 5. a3 {[%clk 0:02:59.7]} 5...
Bxc3+ {[%clk 0:02:54.4]} 6. bxc3 {[%clk 0:02:59.7]} 6... d6 {[%clk 0:02:52.1]}
7. Bg5 {[%clk 0:02:54.2]} 7... h6 {[%clk 0:02:47.6]} 8. Bh4 {[%clk 0:02:53.4]}
8... Nc6 {[%clk 0:02:45.3]} 9. e3 {[%clk 0:02:52.4]} 9... O-O {[%clk 0:02:39.3]}
10. Bd3 {[%clk 0:02:50.4]} 10... Qe7 {[%clk 0:02:37]} 11. Ne2 {[%clk 0:02:49.1]}
11... e5 {[%clk 0:02:36.7]} 12. d5 {[%clk 0:02:47.8]} 12... e4 {[%clk
0:02:27.3]} 13. Bxf6 {[%clk 0:02:34.5]} 13... Qxf6 {[%clk 0:02:26.4]} 14. Bxe4
{[%clk 0:02:33.4]} 14... Ne5 {[%clk 0:02:22.3]} 15. Bd3 {[%clk 0:02:31.1]} 15...
Qg5 {[%clk 0:02:00.5]} 16. Qd2 {[%clk 0:02:00.9]} 16... Qxg2 {[%clk 0:01:56.7]}
17. O-O-O {[%clk 0:01:57.6]} 17... Nxf3 {[%clk 0:01:48.4]} 18. Qc2 {[%clk
0:01:57.3]} 18... Qg5 {[%clk 0:01:46.1]} 19. Nf4 {[%clk 0:01:55.5]} 19... Re8
{[%clk 0:01:42.8]} 20. h4 {[%clk 0:01:53.2]} 20... Qe7 {[%clk 0:01:39]} 21. e4
{[%clk 0:01:50.9]} 21... Qe5 {[%clk 0:01:29.7]} 22. Ne2 {[%clk 0:01:47.8]} 22...
Nxh4 {[%clk 0:01:25.9]} 23. Rxh4 {[%clk 0:01:45.5]} 23... Qg5+ {[%clk 0:01:21]}
24. Rf4 {[%clk 0:01:45.4]} 24... f5 {[%clk 0:01:20.9]} 25. Kb1 {[%clk
0:01:36.8]} 25... fxe4 {[%clk 0:01:19.3]} 26. Rxe4 {[%clk 0:01:27.2]} 26... Bd7
{[%clk 0:01:15.6]} 27. Rxe8+ {[%clk 0:01:25.6]} 27... Rxe8 {[%clk 0:01:14.6]}
28. Rg1 {[%clk 0:01:26.1]} 28... Rxe2 {[%clk 0:01:05.5]} 29. Rxg5 {[%clk
0:01:09.8]} 29... Rxc2 {[%clk 0:01:05]} 30. Rg6 {[%clk 0:01:10.1]} 30... Rd2
{[%clk 0:01:04.5]} 31. Rxd6 {[%clk 0:01:06.2]} 31... Ba4 {[%clk 0:00:47.3]} 32.
Bg6 {[%clk 0:01:01.6]} 32... Rd1+ {[%clk 0:00:43.7]} 33. Kb2 {[%clk 0:00:59.7]}
33... Rd2+ {[%clk 0:00:43.2]} 34. Kc1 {[%clk 0:00:42.8]} 34... Rd1+ {[%clk
0:00:42.7]} 35. Kb2 {[%clk 0:00:42.7]} 35... Rd2+ {[%clk 0:00:42.5]} 36. Kc1
{[%clk 0:00:32.6]} 36... Rd1+ {[%clk 0:00:42]} 37. Kb2 {[%clk 0:00:32.7]}
1/2-1/2

[Event "Betsys MČR v online bleskovém šachu 2021"]
[Site "Chess.com"]
[Date "2021.04.17"]
[Round "3"]
[White "fortale"]
[Black "MrNikdo"]
[Result "1-0"]
[WhiteElo "2339"]
[BlackElo "2037"]
[TimeControl "180+1"]
[EndTime "9:26:20 PDT"]
[Termination "Uživatel fortale zvítězil po vzdání soupeře"]

1. e4 {[%clk 0:03:00.9]} 1... c5 {[%clk 0:02:59.7]} 2. Nf3 {[%clk 0:02:57.4]}
2... Nc6 {[%clk 0:02:59.2]} 3. d4 {[%clk 0:02:57.6]} 3... cxd4 {[%clk
0:03:00.1]} 4. Nxd4 {[%clk 0:02:58.5]} 4... Nf6 {[%clk 0:02:59.6]} 5. Nc3 {[%clk
0:02:58.9]} 5... e5 {[%clk 0:03:00.1]} 6. Ndb5 {[%clk 0:02:59.1]} 6... d6 {[%clk
0:03:00.6]} 7. Bg5 {[%clk 0:02:59.3]} 7... a6 {[%clk 0:03:01.1]} 8. Na3 {[%clk
0:02:59.9]} 8... b5 {[%clk 0:03:01.3]} 9. Nd5 {[%clk 0:03:00.3]} 9... Qa5+
{[%clk 0:03:01.6]} 10. Bd2 {[%clk 0:03:00.1]} 10... Qd8 {[%clk 0:03:00.2]} 11.
Bg5 {[%clk 0:02:59.7]} 11... Qa5+ {[%clk 0:03:00.3]} 12. Bd2 {[%clk 0:02:59.9]}
12... Qd8 {[%clk 0:03:00.5]} 13. c4 {[%clk 0:03:00.6]} 13... Nxd5 {[%clk
0:02:53.6]} 14. exd5 {[%clk 0:02:56.8]} 14... Nd4 {[%clk 0:02:53.8]} 15. cxb5
{[%clk 0:02:53.6]} 15... Bf5 {[%clk 0:02:42.7]} 16. Rc1 {[%clk 0:02:50.7]} 16...
Qh4 {[%clk 0:02:25.4]} 17. Be3 {[%clk 0:02:37.3]} 17... Qe4 {[%clk 0:02:19.6]}
18. b6 {[%clk 0:02:17.6]} 18... Qxd5 {[%clk 0:01:52]} 19. Qa4+ {[%clk
0:01:54.3]} 19... Bd7 {[%clk 0:01:51]} 20. Qc4 {[%clk 0:01:53.9]} 20... Qe4
{[%clk 0:01:36.2]} 21. Qc7 {[%clk 0:01:33.6]} 21... d5 {[%clk 0:00:48.2]} 22. b7
{[%clk 0:01:29.8]} 22... Bb4+ {[%clk 0:00:47.6]} 23. Rc3 {[%clk 0:01:17.4]}
23... O-O {[%clk 0:00:27.8]} 24. bxa8=Q {[%clk 0:01:16.1]} 24... Rxa8 {[%clk
0:00:28.7]} 25. Qxd7 {[%clk 0:01:16.2]} 25... Nc2+ {[%clk 0:00:23.7]} 26. Nxc2
{[%clk 0:01:12.9]} 26... Qxc2 {[%clk 0:00:24.6]} 27. Qxd5 {[%clk 0:01:08.5]}
27... Bxc3+ {[%clk 0:00:23]} 28. bxc3 {[%clk 0:01:07.7]} 28... Qxc3+ {[%clk
0:00:23.7]} 29. Qd2 {[%clk 0:01:03.9]} 29... Qa1+ {[%clk 0:00:23.7]} 30. Qd1
{[%clk 0:01:02.9]} 30... Qxa2 {[%clk 0:00:21]} 31. Be2 {[%clk 0:01:02.6]} 31...
Rb8 {[%clk 0:00:11.9]} 32. O-O {[%clk 0:01:01.8]} 32... h6 {[%clk 0:00:12.4]}
33. Bf3 {[%clk 0:01:00]} 33... Rb2 {[%clk 0:00:11.9]} 34. Qd8+ {[%clk
0:00:58.8]} 34... Kh7 {[%clk 0:00:11.7]} 35. Be4+ {[%clk 0:00:57.5]} 1-0

[Event "Betsys MČR v online bleskovém šachu 2021"]
[Site "Chess.com"]
[Date "2021.04.17"]
[Round "3"]
[White "8_olda_8"]
[Black "marecek1754"]
[Result "1-0"]
[WhiteElo "1798"]
[BlackElo "2184"]
[TimeControl "180+1"]
[EndTime "9:26:22 PDT"]
[Termination "Uživatel 8_olda_8 zvítězil po vzdání soupeře"]

1. d4 {[%clk 0:02:57.6]} 1... Nf6 {[%clk 0:02:59.6]} 2. c4 {[%clk 0:02:56.9]}
2... e6 {[%clk 0:02:57.3]} 3. Nc3 {[%clk 0:02:56.8]} 3... Bb4 {[%clk 0:02:56.9]}
4. Qc2 {[%clk 0:02:56.3]} 4... b6 {[%clk 0:02:56.2]} 5. Nf3 {[%clk 0:02:55.9]}
5... Bb7 {[%clk 0:02:56.6]} 6. a3 {[%clk 0:02:55.9]} 6... Be7 {[%clk 0:02:56.8]}
7. g3 {[%clk 0:02:55.4]} 7... d5 {[%clk 0:02:57.1]} 8. cxd5 {[%clk 0:02:54.2]}
8... exd5 {[%clk 0:02:56.9]} 9. Bg2 {[%clk 0:02:54.8]} 9... O-O {[%clk 0:02:57]}
10. O-O {[%clk 0:02:48.8]} 10... Nbd7 {[%clk 0:02:56.7]} 11. Bf4 {[%clk
0:02:48.2]} 11... Rc8 {[%clk 0:02:55.6]} 12. Nb5 {[%clk 0:02:41.6]} 12... c6
{[%clk 0:02:39.4]} 13. Nxa7 {[%clk 0:02:28.1]} 13... Ra8 {[%clk 0:02:28.3]} 14.
Nxc6 {[%clk 0:02:27.9]} 14... Bxc6 {[%clk 0:02:29.2]} 15. Qxc6 {[%clk
0:02:26.8]} 15... Rc8 {[%clk 0:02:29.4]} 16. Qa4 {[%clk 0:02:19.6]} 16... Rc4
{[%clk 0:02:27.3]} 17. Qb3 {[%clk 0:02:16.3]} 17... Ne4 {[%clk 0:02:18.8]} 18.
Rac1 {[%clk 0:02:04.7]} 18... Qc8 {[%clk 0:02:02.9]} 19. Ne5 {[%clk 0:01:45.8]}
19... Nxe5 {[%clk 0:02:02.4]} 20. dxe5 {[%clk 0:01:46.2]} 20... g5 {[%clk
0:01:56.2]} 21. Bxe4 {[%clk 0:01:33.4]} 21... gxf4 {[%clk 0:01:52.7]} 22. Rxc4
{[%clk 0:01:33.3]} 22... dxc4 {[%clk 0:01:49.2]} 23. Qxb6 {[%clk 0:01:24]} 23...
f5 {[%clk 0:01:34.9]} 24. exf6 {[%clk 0:01:20.7]} 24... Rxf6 {[%clk 0:01:34.9]}
25. Qd4 {[%clk 0:01:08.9]} 25... Kg7 {[%clk 0:01:21.5]} 26. gxf4 {[%clk
0:00:46.5]} 26... Bd6 {[%clk 0:01:10.8]} 27. e3 {[%clk 0:00:42.6]} 27... Qg4+
{[%clk 0:00:56.4]} 28. Kh1 {[%clk 0:00:41.6]} 28... Kf7 {[%clk 0:00:40.8]} 29.
Bd5+ {[%clk 0:00:36.8]} 29... Ke7 {[%clk 0:00:39.7]} 30. Rg1 {[%clk 0:00:32.1]}
30... Qh4 {[%clk 0:00:39.4]} 31. Rg7+ {[%clk 0:00:29]} 31... Kf8 {[%clk
0:00:37.7]} 32. Rg8+ {[%clk 0:00:25.3]} 32... Ke7 {[%clk 0:00:37.5]} 33. Qa7+
{[%clk 0:00:25.2]} 1-0

[Event "Betsys MČR v online bleskovém šachu 2021"]
[Site "Chess.com"]
[Date "2021.04.17"]
[Round "3"]
[White "PetrSoucek"]
[Black "svobodan"]
[Result "1-0"]
[WhiteElo "2021"]
[BlackElo "1668"]
[TimeControl "180+1"]
[EndTime "9:26:23 PDT"]
[Termination "Uživatel PetrSoucek zvítězil po vzdání soupeře"]

1. d4 {[%clk 0:02:59.5]} 1... Nf6 {[%clk 0:02:59.6]} 2. Bf4 {[%clk 0:02:57.9]}
2... c5 {[%clk 0:02:58.2]} 3. dxc5 {[%clk 0:02:54.4]} 3... e6 {[%clk 0:02:56.9]}
4. Nc3 {[%clk 0:02:51.9]} 4... Bxc5 {[%clk 0:02:56.1]} 5. e4 {[%clk 0:02:52.3]}
5... Nc6 {[%clk 0:02:53.7]} 6. Nf3 {[%clk 0:02:50.1]} 6... O-O {[%clk
0:02:53.3]} 7. Bc4 {[%clk 0:02:46.6]} 7... a6 {[%clk 0:02:34.8]} 8. a4 {[%clk
0:02:40.1]} 8... Qb6 {[%clk 0:02:28.5]} 9. O-O {[%clk 0:02:23.8]} 9... Qxb2
{[%clk 0:02:03.3]} 10. Bd2 {[%clk 0:01:35.7]} 10... Qb6 {[%clk 0:01:54.2]} 11.
Rb1 {[%clk 0:01:30.3]} 11... Qc7 {[%clk 0:01:53]} 12. Bg5 {[%clk 0:01:16.5]}
12... Be7 {[%clk 0:01:44.7]} 13. Qe2 {[%clk 0:01:08]} 13... h6 {[%clk
0:01:24.8]} 14. Bh4 {[%clk 0:01:05.5]} 14... Na5 {[%clk 0:01:11.3]} 15. Nd2
{[%clk 0:00:37.7]} 15... Nxc4 {[%clk 0:00:54.5]} 16. Nxc4 {[%clk 0:00:38.6]}
16... d5 {[%clk 0:00:54.5]} 17. exd5 {[%clk 0:00:34.7]} 17... exd5 {[%clk
0:00:52.8]} 18. Bxf6 {[%clk 0:00:31.5]} 18... Bxf6 {[%clk 0:00:48.1]} 19. Nxd5
{[%clk 0:00:31.3]} 19... Qc6 {[%clk 0:00:34]} 20. Ncb6 {[%clk 0:00:23.4]} 20...
Rb8 {[%clk 0:00:30.3]} 21. Qf3 {[%clk 0:00:20.4]} 21... Bd4 {[%clk 0:00:16.9]}
22. Ne7+ {[%clk 0:00:19.9]} 1-0

[Event "Betsys MČR v online bleskovém šachu 2021"]
[Site "Chess.com"]
[Date "2021.04.17"]
[Round "3"]
[White "Mitram64"]
[Black "Michaela1994"]
[Result "1-0"]
[WhiteElo "1990"]
[BlackElo "1616"]
[TimeControl "180+1"]
[EndTime "9:26:24 PDT"]
[Termination "Uživatel Mitram64 zvítězil na čas"]

1. d4 {[%clk 0:03:00.9]} 1... e6 {[%clk 0:02:59.6]} 2. Nf3 {[%clk 0:03:00]} 2...
f5 {[%clk 0:02:59]} 3. Bf4 {[%clk 0:02:58.3]} 3... Nf6 {[%clk 0:02:59]} 4. e3
{[%clk 0:02:57.6]} 4... g6 {[%clk 0:02:58.7]} 5. Nbd2 {[%clk 0:02:56.4]} 5...
Bg7 {[%clk 0:02:59.1]} 6. h3 {[%clk 0:02:55.7]} 6... O-O {[%clk 0:02:59.1]} 7.
Bc4 {[%clk 0:02:54.8]} 7... c6 {[%clk 0:02:58.3]} 8. O-O {[%clk 0:02:50.4]} 8...
d5 {[%clk 0:02:57.9]} 9. Bb3 {[%clk 0:02:49.8]} 9... Nbd7 {[%clk 0:02:55.3]} 10.
c4 {[%clk 0:02:48.8]} 10... Ne4 {[%clk 0:02:50.3]} 11. Rc1 {[%clk 0:02:44.6]}
11... Nb6 {[%clk 0:02:29.3]} 12. Ne5 {[%clk 0:02:40.7]} 12... Nd7 {[%clk
0:02:24.9]} 13. Ndf3 {[%clk 0:02:27.2]} 13... g5 {[%clk 0:02:14.9]} 14. Nxd7
{[%clk 0:02:21.9]} 14... Bxd7 {[%clk 0:02:13.7]} 15. Be5 {[%clk 0:02:21.5]}
15... Qe8 {[%clk 0:01:58.5]} 16. Bc2 {[%clk 0:02:12]} 16... Qg6 {[%clk 0:01:55]}
17. Bxg7 {[%clk 0:02:06.9]} 17... Qxg7 {[%clk 0:01:51.7]} 18. Ne5 {[%clk
0:02:06.5]} 18... Be8 {[%clk 0:01:45.1]} 19. b4 {[%clk 0:02:01.3]} 19... f4
{[%clk 0:01:39.6]} 20. b5 {[%clk 0:01:54.6]} 20... cxb5 {[%clk 0:01:36.3]} 21.
cxd5 {[%clk 0:01:53]} 21... exd5 {[%clk 0:01:33.4]} 22. Bb3 {[%clk 0:01:52.1]}
22... h5 {[%clk 0:01:02.8]} 23. Bxd5+ {[%clk 0:01:50.3]} 23... Kh8 {[%clk
0:00:58.3]} 24. Bxe4 {[%clk 0:01:49.7]} 24... g4 {[%clk 0:00:54.7]} 25. hxg4
{[%clk 0:01:47.2]} 25... hxg4 {[%clk 0:00:54.5]} 26. Qxg4 {[%clk 0:01:46.2]}
26... Qxg4 {[%clk 0:00:53]} 27. Nxg4 {[%clk 0:01:45]} 27... Bh5 {[%clk
0:00:47.1]} 28. Ne5 {[%clk 0:01:40.5]} 28... fxe3 {[%clk 0:00:38.3]} 29. fxe3
{[%clk 0:01:39.2]} 29... Rxf1+ {[%clk 0:00:37.8]} 30. Rxf1 {[%clk 0:01:36.3]}
30... Rc8 {[%clk 0:00:25.4]} 31. Rf6 {[%clk 0:01:34.2]} 31... Kg7 {[%clk
0:00:20.9]} 32. Rd6 {[%clk 0:01:31.2]} 32... b6 {[%clk 0:00:16.4]} 33. Rd7+
{[%clk 0:01:26.7]} 33... Kf6 {[%clk 0:00:15.5]} 34. Rxa7 {[%clk 0:01:25]} 34...
Rc1+ {[%clk 0:00:12.3]} 35. Kh2 {[%clk 0:01:24.1]} 35... Re1 {[%clk 0:00:11]}
36. g4 {[%clk 0:01:14.4]} 36... Re2+ {[%clk 0:00:06.2]} 37. Kg3 {[%clk
0:01:12.4]} 37... Rxe3+ {[%clk 0:00:05.9]} 38. Kf4 {[%clk 0:01:11.8]} 1-0

[Event "Betsys MČR v online bleskovém šachu 2021"]
[Site "Chess.com"]
[Date "2021.04.17"]
[Round "3"]
[White "DONSANMIGUEL"]
[Black "OlifantCZ"]
[Result "0-1"]
[WhiteElo "1800"]
[BlackElo "2281"]
[TimeControl "180+1"]
[EndTime "9:26:25 PDT"]
[Termination "Uživatel OlifantCZ zvítězil matem"]

1. Nf3 {[%clk 0:03:00.9]} 1... Nf6 {[%clk 0:02:59.2]} 2. a4 {[%clk 0:03:01.8]}
2... g6 {[%clk 0:02:56.4]} 3. d3 {[%clk 0:03:02.7]} 3... Bg7 {[%clk 0:02:53.4]}
4. Nbd2 {[%clk 0:03:03.6]} 4... d5 {[%clk 0:02:45.6]} 5. e3 {[%clk 0:03:04.5]}
5... O-O {[%clk 0:02:45.1]} 6. Be2 {[%clk 0:03:05.4]} 6... c5 {[%clk 0:02:45.1]}
7. c3 {[%clk 0:02:59.1]} 7... Nc6 {[%clk 0:02:44.9]} 8. Nf1 {[%clk 0:02:57.5]}
8... e5 {[%clk 0:02:44.7]} 9. Ng3 {[%clk 0:02:56.7]} 9... e4 {[%clk 0:02:41.7]}
10. Ng5 {[%clk 0:02:50.1]} 10... h6 {[%clk 0:02:38.7]} 11. Nh3 {[%clk
0:02:48.8]} 11... Bxh3 {[%clk 0:02:35.7]} 12. gxh3 {[%clk 0:02:48.1]} 12... Qd7
{[%clk 0:02:31.8]} 13. Bg4 {[%clk 0:02:42.9]} 13... Nxg4 {[%clk 0:02:30.6]} 14.
hxg4 {[%clk 0:02:40.2]} 14... exd3 {[%clk 0:02:30.8]} 15. g5 {[%clk 0:02:26.4]}
15... hxg5 {[%clk 0:02:28.1]} 16. Qxd3 {[%clk 0:02:25.3]} 16... Ne5 {[%clk
0:02:26.4]} 17. Qe2 {[%clk 0:02:04.6]} 17... g4 {[%clk 0:02:21.9]} 18. Bd2
{[%clk 0:02:00.8]} 18... Nf3+ {[%clk 0:02:21.6]} 19. Kd1 {[%clk 0:02:01.1]}
19... a6 {[%clk 0:02:09.2]} 20. h3 {[%clk 0:02:00.3]} 20... b5 {[%clk
0:01:53.1]} 21. a5 {[%clk 0:01:58.6]} 21... d4 {[%clk 0:01:48.2]} 22. hxg4
{[%clk 0:01:52.9]} 22... dxc3 {[%clk 0:01:44.3]} 23. bxc3 {[%clk 0:01:46.1]}
23... Nxd2 {[%clk 0:01:43.5]} 24. Qxd2 {[%clk 0:01:35.8]} 24... Qxg4+ {[%clk
0:01:43.2]} 25. Kc2 {[%clk 0:01:32.4]} 25... Rad8 {[%clk 0:01:42.2]} 26. Qe2
{[%clk 0:01:25.2]} 26... Qe6 {[%clk 0:01:33.9]} 27. f4 {[%clk 0:01:13.8]} 27...
b4 {[%clk 0:01:28.2]} 28. Rab1 {[%clk 0:00:56.1]} 28... Bxc3 {[%clk 0:01:20.9]}
29. Rhd1 {[%clk 0:00:13.5]} 29... Qa2+ {[%clk 0:01:14.6]} 30. Kc1 {[%clk
0:00:13]} 30... Qa3+ {[%clk 0:01:10.2]} 31. Kc2 {[%clk 0:00:12.1]} 31... Qa4+
{[%clk 0:01:07.1]} 32. Rb3 {[%clk 0:00:11.6]} 32... Qa2+ {[%clk 0:01:05.9]} 33.
Kc1 {[%clk 0:00:10.3]} 33... Qxb3 {[%clk 0:01:04.6]} 34. Rxd8 {[%clk 0:00:09]}
34... Rxd8 {[%clk 0:01:03.8]} 35. Ne4 {[%clk 0:00:08.3]} 35... Rd1+ {[%clk
0:00:58.2]} 36. Qxd1 {[%clk 0:00:06.5]} 36... Qb2# {[%clk 0:00:58.5]} 0-1

[Event "Betsys MČR v online bleskovém šachu 2021"]
[Site "Chess.com"]
[Date "2021.04.17"]
[Round "3"]
[White "Ondre2836"]
[Black "JonasFadrny"]
[Result "1-0"]
[WhiteElo "1301"]
[BlackElo "754"]
[TimeControl "180+1"]
[EndTime "9:26:25 PDT"]
[Termination "Uživatel Ondre2836 zvítězil matem"]

1. e4 {[%clk 0:02:59.6]} 1... e5 {[%clk 0:02:58]} 2. Bc4 {[%clk 0:02:58.5]} 2...
Nf6 {[%clk 0:02:56.3]} 3. d3 {[%clk 0:02:57.6]} 3... Nc6 {[%clk 0:02:54.6]} 4.
Nf3 {[%clk 0:02:55.8]} 4... h6 {[%clk 0:02:54.6]} 5. c3 {[%clk 0:02:53.6]} 5...
Bc5 {[%clk 0:02:54.7]} 6. O-O {[%clk 0:02:49]} 6... O-O {[%clk 0:02:55]} 7. a4
{[%clk 0:02:44.6]} 7... Qe7 {[%clk 0:02:55.3]} 8. Qe2 {[%clk 0:02:34.7]} 8... d6
{[%clk 0:02:55.3]} 9. b4 {[%clk 0:02:33.8]} 9... Bb6 {[%clk 0:02:54.2]} 10. a5
{[%clk 0:02:32.8]} 10... Bd4 {[%clk 0:02:53.2]} 11. cxd4 {[%clk 0:02:29.6]}
11... exd4 {[%clk 0:02:52.9]} 12. Bb2 {[%clk 0:02:28.6]} 12... Bg4 {[%clk
0:02:48.5]} 13. h3 {[%clk 0:02:21.8]} 13... Bxf3 {[%clk 0:02:48.6]} 14. Qxf3
{[%clk 0:02:20.7]} 14... Rad8 {[%clk 0:02:44.2]} 15. Nd2 {[%clk 0:02:19.6]}
15... Nxb4 {[%clk 0:02:43.1]} 16. Bxd4 {[%clk 0:02:16.5]} 16... Nc2 {[%clk
0:02:33]} 17. Ra2 {[%clk 0:02:12.6]} 17... Nxd4 {[%clk 0:02:32.6]} 18. Qe3
{[%clk 0:02:05.9]} 18... Nc6 {[%clk 0:02:28.5]} 19. Rb2 {[%clk 0:01:56.1]} 19...
b6 {[%clk 0:02:27.4]} 20. axb6 {[%clk 0:01:53.5]} 20... axb6 {[%clk 0:02:27.7]}
21. Bb5 {[%clk 0:01:53.3]} 21... Qd7 {[%clk 0:02:26.1]} 22. Rc1 {[%clk
0:01:50.4]} 22... Qe6 {[%clk 0:02:08.1]} 23. Bxc6 {[%clk 0:01:47.5]} 23... Qe5
{[%clk 0:02:01.5]} 24. Rbc2 {[%clk 0:01:41.1]} 24... g5 {[%clk 0:01:38.7]} 25.
d4 {[%clk 0:01:38.3]} 25... Qe7 {[%clk 0:01:33]} 26. e5 {[%clk 0:01:36.6]} 26...
dxe5 {[%clk 0:01:23.6]} 27. Qxe5 {[%clk 0:01:35.2]} 27... Qxe5 {[%clk
0:01:21.9]} 28. dxe5 {[%clk 0:01:34.2]} 28... Nd7 {[%clk 0:01:14.2]} 29. Bxd7
{[%clk 0:01:32.6]} 29... Rxd7 {[%clk 0:01:13.7]} 30. Ne4 {[%clk 0:01:31.7]}
30... f5 {[%clk 0:01:12]} 31. Nf6+ {[%clk 0:01:30.3]} 31... Kf7 {[%clk
0:01:08.9]} 32. Nxd7 {[%clk 0:01:29.9]} 32... Rd8 {[%clk 0:01:05.1]} 33. Rxc7
{[%clk 0:01:29.2]} 33... Ke6 {[%clk 0:01:03.3]} 34. R1c6+ {[%clk 0:01:24.8]}
34... Kd5 {[%clk 0:01:00.9]} 35. Nf6+ {[%clk 0:01:23.6]} 35... Kd4 {[%clk
0:00:59.6]} 36. Rd7+ {[%clk 0:01:21.1]} 36... Rxd7 {[%clk 0:00:58.1]} 37. Nxd7
{[%clk 0:01:20.6]} 37... Kd5 {[%clk 0:00:58]} 38. Rxh6 {[%clk 0:01:15.8]} 38...
b5 {[%clk 0:00:56.3]} 39. e6 {[%clk 0:01:14.5]} 39... Kd6 {[%clk 0:00:54]} 40.
Nb6 {[%clk 0:01:09.8]} 40... b4 {[%clk 0:00:50.5]} 41. Kf1 {[%clk 0:01:08]}
41... b3 {[%clk 0:00:49.7]} 42. Ke2 {[%clk 0:01:07.7]} 42... b2 {[%clk
0:00:49.7]} 43. Nc4+ {[%clk 0:01:07.3]} 43... Ke7 {[%clk 0:00:46.2]} 44. Nxb2
{[%clk 0:01:06.9]} 44... f4 {[%clk 0:00:43.7]} 45. Kd3 {[%clk 0:01:06.5]} 45...
Ke8 {[%clk 0:00:39.6]} 46. Ke4 {[%clk 0:01:06.5]} 46... Ke7 {[%clk 0:00:38.7]}
47. Kd5 {[%clk 0:01:06.3]} 47... Ke8 {[%clk 0:00:38.2]} 48. Kd6 {[%clk 0:01:05]}
48... Kd8 {[%clk 0:00:36.7]} 49. Rh8# {[%clk 0:01:04.6]} 1-0